bitfinex-derivatives/quotes_ETHF0:USTF0_20250518
["timestamp","ask_amount","ask_price","bid_price","bid_amount"]
[1747594822267,0.81153,2463.5,2463.4,18.53670942]
[1747594822472,0.81153,2463.5,2463.4,19.34636942]
[1747594822674,0.81145,2463.7,2463.5,0.81151]
[1747594822975,4.05869,2463.6,2463.4,4.01933]
[1747594823167,4.05869,2463.6,2463.4,7.07733]
[1747594823368,4.05869,2463.6,2463.5,18.53667942]
[1747594823567,4.05869,2463.6,2463.5,17.72516942]
[1747594824072,0.81149,2463.6,2463.5,20.78316942]
[1747594825774,0.81147,2463.7,2463.5,21.59467942]
[1747594825973,0.81148,2463.6,2463.5,3.058]
[1747594826481,5.81148,2463.6,2463.5,3.058]
[1747594826667,0.81158,2463.3,2463.2,0.09218003]
[1747594826863,9.01938,2463.3,2463.2,0.09218003]
[1747594828776,4.01938,2463.3,2463.2,0.09218003]
[1747594829392,9.01938,2463.3,2463.2,0.09218003]
[1747594829981,9.01938,2463.3,2462.6,1.21103685]
[1747594829982,8.2078,2463.3,2462.6,1.21103685]
[1747594830182,0.81178,2462.7,2462.6,1.21103685]
[1747594830390,3.2078,2462.9,2462.7,0.81177]
[1747594830687,3.2078,2462.9,2462.8,17.72516942]
[1747594831084,3.2078,2462.9,2462.8,18.53690942]
[1747594831288,3.2078,2462.9,2462.8,21.59490942]
[1747594832083,3.2078,2462.9,2462.8,20.78316942]
[1747594832289,4.01939,2463.3,2462.8,20.78316942]
[1747594832481,4.01939,2463.3,2463.2,17.72516942]
[1747594832482,4.01938,2463.3,2463.2,17.72516942]
[1747594832891,4.01938,2463.3,2463.2,0.09218003]
[1747594833284,4.01938,2463.3,2463.2,17.81734945]
[1747594835303,6.42993612,2463.3,2463.2,17.81734945]
[1747594835499,8.09383612,2463.3,2463.2,17.81734945]
[1747594835698,8.09383612,2463.3,2463.2,0.09218003]
[1747594836702,6.42993612,2463.3,2463.2,17.81734945]
[1747594837709,3.22213612,2463.3,2463.2,17.81734945]
[1747594839304,3.22213612,2463.3,2463.2,0.09218003]
[1747594839700,8.22213612,2463.3,2463.2,0.09218003]
[1747594840003,0.81178,2462.7,2462.6,1.642]
[1747594840507,5.81178,2462.7,2462.6,1.642]
[1747594840707,7.41598,2462.7,2462.6,1.0329]
[1747594840912,2.41598,2462.7,2462.6,1.0329]
[1747594841503,5.60399698,2462.7,2462.6,1.0329]
[1747594841900,10.60399698,2462.7,2462.6,1e-08]
[1747594842606,10.82309031,2462.7,2462.6,1e-08]
[1747594843008,0.81201,2462.0,2461.9,10.096]
[1747594843208,0.81201,2462.0,2461.9,11.7513]
[1747594843509,0.81201,2462.0,2461.9,29.47646942]
[1747594843709,0.81201,2462.0,2461.9,19.38046942]
[1747594844004,3.2078,2462.2,2462.1,0.81197]
[1747594844209,3.18801698,2462.7,2462.1,17.72516942]
[1747594844509,3.18801698,2462.7,2462.6,17.72516942]
[1747594844704,0.81178,2462.7,2462.6,17.72516942]
[1747594845608,0.81181,2462.6,2462.5,6.4542]
[1747594846203,0.81181,2462.6,2462.5,24.17936942]
[1747594846404,0.81179,2462.7,2462.5,24.17936942]
[1747594846599,0.81178,2462.7,2462.5,6.4542]
[1747594846805,0.81178,2462.7,2462.6,17.72516942]
[1747594847711,3.95848429,2462.8,2462.6,18.53695942]
[1747594847915,4.77024429,2462.8,2462.7,19.36976942]
[1747594848514,0.81178,2462.7,2462.6,3.058]
[1747594848914,0.81178,2462.7,2462.6,20.78316942]
[1747594849116,0.81176,2462.8,2462.6,17.72516942]
[1747594849410,2.94184,2462.9,2462.7,19.36976942]
[1747594849611,2.94181,2462.9,2462.8,1.6446]
[1747594849815,5.3379,2462.9,2462.5,13.156]
[1747594850013,0.81181,2462.6,2462.5,13.156]
[1747594850413,0.81181,2462.6,2462.5,30.88116942]
[1747594850813,0.81181,2462.6,2462.5,20.78316942]
[1747594851017,0.81181,2462.6,2462.5,3.058]
[1747594852318,0.81181,2462.6,2462.5,20.78316942]
[1747594852616,1.59917733,2462.7,2462.5,20.78316942]
[1747594852818,1.59917733,2462.7,2462.6,19.50656942]
[1747594853118,2.41095733,2462.7,2462.6,19.59874945]
[1747594854119,2.41095733,2462.7,2462.6,1.87358003]
[1747594854510,2.41095733,2462.7,2462.6,19.59874945]
[1747594854920,2.41095733,2462.7,2462.6,1.87358003]
[1747594855417,4.18075733,2462.7,2462.6,1.87358003]
[1747594856212,0.81181,2462.6,2462.5,0.31797831]
[1747594856415,14.35601,2462.6,2462.5,0.31797831]
[1747594856916,14.35501,2462.6,2462.5,0.31797831]
[1747594857217,16.7546586,2462.6,2462.5,0.31797831]
[1747594858519,19.9624586,2462.6,2462.5,0.31797831]
[1747594858920,24.9624586,2462.6,2462.5,8.31e-06]
[1747594859317,0.81194,2462.2,2462.1,1.7685]
[1747594859520,0.81194,2462.2,2462.1,19.49366942]
[1747594860615,1.7154,2462.6,2462.1,19.49366942]
[1747594860916,0.81181,2462.6,2462.5,17.72516942]
[1747594861319,0.8118,2462.7,2462.6,0.09218003]
[1747594861509,0.8118,2462.7,2462.6,21.14244945]
[1747594861713,1.48262013,2462.7,2462.6,21.14244945]
[1747594862113,0.67082013,2462.7,2462.6,21.14244945]
[1747594862318,1.48260013,2462.7,2462.6,21.14244945]
[1747594862508,0.67082013,2462.7,2462.6,21.95425945]
[1747594862917,10.71882013,2462.7,2462.6,0.09218003]
[1747594863219,14.92450013,2462.7,2462.6,0.09218003]
[1747594863420,14.92450013,2462.7,2462.6,1.78818003]
[1747594863814,17.33875298,2462.7,2462.6,1.78818003]
[1747594864122,22.33875298,2462.7,2462.6,3e-08]
[1747594866522,21.66793285,2462.7,2462.6,3e-08]
[1747594866721,0.81201,2462.0,2461.9,1.7784]
[1747594866921,4.01977,2462.1,2462.0,17.72516942]
[1747594867222,4.01977,2462.1,2461.9,3.058]
[1747594867422,10.041,2462.2,2462.0,19.38936942]
[1747594867622,10.85294,2462.2,2462.1,17.72516942]
[1747594868218,3.2078,2462.5,2462.1,17.72516942]
[1747594868413,10.85083,2462.6,2462.4,17.72516942]
[1747594868722,10.85081,2462.6,2462.5,19.38936942]
[1747594869123,10.85081,2462.6,2462.5,22.44736942]
[1747594869422,10.85081,2462.6,2462.5,4.7222]
[1747594870624,10.85081,2462.6,2462.5,22.44736942]
[1747594870825,0.81181,2462.6,2462.5,22.44736942]
[1747594871028,0.8118,2462.7,2462.5,22.44736942]
[1747594871225,4.0602,2462.7,2462.6,19.38606942]
[1747594871419,4.0602,2462.7,2462.6,19.47824945]
[1747594871622,4.0602,2462.7,2462.6,17.81734945]
[1747594871824,4.73102013,2462.7,2462.6,0.09218003]
[1747594872328,6.35622013,2462.7,2462.6,0.09218003]
[1747594874322,4.73102013,2462.7,2462.6,19.54144945]
[1747594874825,4.73102013,2462.7,2462.6,0.09218003]
[1747594875021,6.44592013,2462.7,2462.6,0.09218003]
[1747594875221,6.44592013,2462.7,2462.6,1.84578003]
[1747594875918,6.44592013,2462.7,2462.6,17.81734945]
[1747594876129,11.44592013,2462.7,2462.6,3e-08]
[1747594876330,0.81181,2462.6,2462.5,2.01872003]
[1747594876527,4.29841,2462.6,2462.5,2.01872003]
[1747594876721,9.29841,2462.6,2462.5,2.01872003]
[1747594877123,8.4866,2462.6,2462.1,1.7536]
[1747594877427,13.2308,2462.5,2462.1,4.9614]
[1747594877628,0.81191,2462.3,2462.2,19.47876942]
[1747594878529,0.81191,2462.3,2462.2,1.7536]
[1747594878731,0.81194,2462.2,2462.1,3.058]
[1747594879233,0.81194,2462.2,2462.1,20.78316942]
[1747594879629,0.81194,2462.2,2462.1,20.87534945]
[1747594879933,0.3666,2462.4,2462.1,29.08314945]
[1747594880131,0.3666,2462.4,2462.3,17.72516942]
[1747594880533,0.3666,2462.4,2462.3,19.37316942]
[1747594880733,1.17847,2462.4,2462.3,19.37316942]
[1747594881027,0.3666,2462.4,2462.3,19.37316942]
[1747594881224,0.3666,2462.4,2462.3,23.54743439]
[1747594882634,3.44182245,2462.5,2462.4,0.81187]
[1747594882936,2.42662245,2462.5,2462.4,33.78504565]
[1747594883135,2.42662245,2462.5,2462.4,41.84304565]
[1747594883339,6.61334313,2462.7,2462.6,0.81181]
[1747594883529,6.4838966,2462.7,2462.6,18.84128565]
[1747594883731,6.4838966,2462.7,2462.6,23.84128565]
[1747594884335,6.4838966,2462.7,2462.6,18.84128565]
[1747594884529,6.4838966,2462.7,2462.6,23.84128565]
[1747594885038,3.2484,2462.7,2462.6,24.89870705]
[1747594885633,3.2354966,2463.5,2463.1,0.81163]
[1747594885839,3.2354966,2463.5,2463.4,17.72516942]
[1747594886336,3.2354966,2463.5,2463.4,18.53670942]
[1747594886729,3.2354966,2463.5,2463.4,20.25320942]
[1747594886936,3.2354966,2463.5,2463.4,25.25320942]
[1747594887136,3.2354966,2463.5,2463.4,28.31120942]
[1747594887439,0.81143,2463.8,2463.6,0.81147]
[1747594887636,1.97356564,2463.9,2463.8,0.81141]
[1747594887835,5.22036564,2463.9,2463.8,18.53657942]
[1747594888140,5.22036564,2463.9,2463.8,21.99617942]
[1747594889443,3.2468,2463.9,2463.8,21.99617942]
[1747594889835,3.53164663,2464.1,2464.0,0.81135]
[1747594890040,3.53164663,2464.1,2464.0,18.53651942]
[1747594890236,2.72033663,2464.1,2464.0,18.53651942]
[1747594890539,2.72033663,2464.1,2464.0,20.23311942]
[1747594891236,3.53164663,2464.1,2464.0,20.23311942]
[1747594891438,3.03034663,2464.1,2464.0,20.23311942]
[1747594891635,2.01584663,2464.1,2464.0,20.23311942]
[1747594891844,2.01584663,2464.1,2464.0,19.42176942]
[1747594892146,3.2463,2464.3,2464.2,0.81128]
[1747594892444,3.2463,2464.3,2464.2,31.78524942]
[1747594892741,3.2463,2464.3,2464.2,36.78524942]
[1747594893436,1e-08,2464.3,2464.2,36.78524942]
[1747594893945,1e-08,2464.3,2464.2,37.02964369]
[1747594894338,3.2354966,2464.9,2464.5,16.71076942]
[1747594894545,1.01188686,2464.8,2464.7,20.72968942]
[1747594894841,0.81085,2465.6,2464.9,2.0276]
[1747594895031,0.81089,2465.4,2465.3,16.71076942]
[1747594895342,0.81089,2465.4,2465.3,26.69976942]
[1747594895536,4.13407,2465.5,2465.3,10.79991]
[1747594895737,0.81089,2465.4,2465.3,9.989]
[1747594895938,4.13407,2465.5,2465.3,9.989]
[1747594896134,0.81089,2465.4,2465.3,9.989]
[1747594896944,0.81089,2465.4,2465.3,11.7353]
[1747594897237,2.02694,2465.8,2465.3,11.7353]
[1747594897238,2.1175,2465.6,2465.3,11.7353]
[1747594897446,2.1175,2465.6,2465.5,20.72941942]
[1747594897939,2.1175,2465.6,2465.5,25.72941942]
[1747594898342,1.97356564,2465.9,2465.8,0.81076]
[1747594898644,2.31217377,2466.2,2465.8,19.91856942]
[1747594898942,2.31217377,2466.2,2466.1,19.91856942]
[1747594899643,2.31217377,2466.2,2466.1,20.72922942]
[1747594900344,2.31217377,2466.2,2466.1,19.91856942]
[1747594900641,2.31217377,2466.2,2466.1,20.72922942]
[1747594900845,2.31217377,2466.2,2466.1,30.71322942]
[1747594901046,3.13984633,2467.0,2466.1,30.71322942]
[1747594901047,3.13984633,2467.0,2466.1,34.90256942]
[1747594901346,0.66951219,2467.6,2467.5,0.8102]
[1747594901646,0.66951219,2467.6,2467.5,14.6099]
[1747594901845,0.66951219,2467.6,2467.5,31.32066942]
[1747594903551,0.66951219,2467.6,2467.5,36.32066942]
[1747594904147,2.19e-06,2467.6,2467.5,36.32066942]
[1747594904448,2.19e-06,2467.6,2467.5,42.51237702]
[1747594905141,2.19e-06,2467.6,2467.5,45.57037702]
[1747594905842,2.19e-06,2467.6,2467.5,35.58637702]
[1747594906044,2.19e-06,2467.6,2467.5,55.52837702]
[1747594906747,2.19e-06,2467.6,2467.5,35.58637702]
[1747594907047,2.19e-06,2467.6,2467.5,55.52037702]
[1747594908353,1.7645,2468.4,2468.3,0.80993]
[1747594908553,2.5744,2468.4,2468.3,13.1848]
[1747594908851,2.5744,2468.4,2468.3,10.9611]
[1747594909746,2.5744,2468.4,2468.3,13.1818]
[1747594909944,1.8228,2468.6,2468.5,0.80987]
[1747594910154,1.8228,2468.6,2468.3,3.2078]
[1747594910350,0.80988,2468.5,2468.4,9.974]
[1747594910546,2.52368,2468.5,2468.4,9.974]
[1747594911245,7.32098,2468.5,2468.4,9.974]
[1747594911448,7.32097,2468.5,2468.4,9.974]
[1747594911748,6.5111,2468.5,2468.4,9.974]
[1747594911949,7.32097,2468.5,2468.4,9.974]
[1747594912349,0.8099,2468.4,2468.3,3.2078]
[1747594912544,2.5492,2468.4,2468.3,3.2078]
[1747594912751,0.80993,2468.3,2468.2,9.973]
[1747594913050,2.54923,2468.3,2468.2,9.973]
[1747594913246,19.8901,2468.3,2466.9,3.2078]
[1747594913441,0.81036,2467.0,2466.9,0.08107341]
[1747594913653,0.81035,2467.1,2466.9,0.08107341]
[1747594913845,0.81036,2467.0,2466.9,0.08107341]
[1747594914044,2.54966,2467.0,2466.9,0.08107341]
[1747594914244,1.7393,2467.0,2466.9,0.08107341]
[1747594914445,1.7393,2467.0,2466.9,0.89146341]
[1747594914652,1.7393,2467.0,2466.9,0.08107341]
[1747594915249,4.7973,2467.0,2466.9,0.08107341]
[1747594915750,5.60766,2467.0,2466.9,0.08107341]
[1747594915952,4.7973,2467.0,2466.9,0.08107341]
[1747594916154,5.60766,2467.0,2466.9,0.08107341]
[1747594916348,4.7973,2467.0,2466.9,0.08107341]
[1747594916854,5.60766,2467.0,2466.9,0.08107341]
[1747594917051,13.81546,2467.0,2466.9,0.08107341]
[1747594917249,13.81546,2467.0,2466.5,9.973]
[1747594917250,13.0051,2467.0,2466.5,9.973]
[1747594917461,0.81047,2466.7,2466.5,9.973]
[1747594917754,1.7474,2466.6,2466.5,9.973]
[1747594917950,1.7474,2466.6,2466.5,10.78352]
[1747594918249,2.55789,2466.6,2466.5,9.973]
[1747594918451,1.7474,2466.6,2466.5,9.973]
[1747594918646,1.7533,2467.2,2466.6,0.81049]
[1747594918847,1.7474,2467.1,2466.9,16.71076942]
[1747594919050,1.7474,2467.1,2466.8,0.81041]
[1747594919257,1.7474,2467.1,2466.8,9.974]
[1747594919449,2.55776,2467.1,2466.8,10.78442]
[1747594919956,1.7474,2467.1,2466.8,9.974]
[1747594920451,1.7474,2467.1,2466.6,3.2078]
[1747594920659,3.2078,2467.0,2466.6,16.71076942]
[1747594920958,3.4937,2467.2,2466.8,0.81041]
[1747594920959,1.7883,2466.9,2466.8,0.81041]
[1747594921151,2.59869,2466.9,2466.7,27.49520942]
[1747594921352,1.7883,2466.9,2466.7,27.49520942]
[1747594921648,1.7883,2466.9,2466.8,17.52119942]
[1747594922053,1.7883,2466.9,2466.8,0.81043]
[1747594922254,2.59871,2466.9,2466.7,0.81045]
[1747594922554,1.7883,2466.9,2466.8,16.71076942]
[1747594922755,1.7883,2466.9,2466.1,3.2078]
[1747594922756,6.7883,2466.9,2466.1,3.2078]
[1747594923066,3.2078,2466.2,2465.6,1.21103685]
[1747594923251,0.81079,2465.7,2465.6,1.21103685]
[1747594923452,3.2078,2465.9,2465.6,1.21103685]
[1747594923653,0.81079,2465.7,2465.6,1.21103685]
[1747594924062,0.81082,2465.6,2465.5,1.6147158]
[1747594924354,13.1388,2465.6,2465.5,1.6147158]
[1747594924552,4.9486,2465.6,2465.5,1.6147158]
[1747594924749,10.75942,2465.6,2465.5,1.6147158]
[1747594924954,0.81089,2465.4,2465.3,2.42296596]
[1747594925456,5.81089,2465.4,2465.3,2.42296596]
[1747594925655,0.81099,2465.1,2465.0,3.17140051]
[1747594925853,13.1398,2465.1,2464.3,14.9118]
[1747594926051,3.2078,2464.8,2464.3,9.932]
[1747594926558,3.2078,2464.5,2464.3,9.932]
[1747594926760,0.81122,2464.4,2464.3,9.932]
[1747594926958,3.2078,2464.5,2464.3,10.74323]
[1747594927258,3.2078,2464.5,2464.3,9.932]
[1747594927761,3.2078,2464.5,2463.8,6.36756156]
[1747594927955,4.01908,2464.2,2463.8,5.55616156]
[1747594928160,6.2658,2464.2,2463.8,5.55616156]
[1747594928358,6.2658,2464.2,2463.7,3.2078]
[1747594928561,6.2658,2464.2,2464.1,0.81131]
[1747594928878,3.058,2464.2,2464.1,27.45707942]
[1747594929054,3.2078,2464.7,2464.1,34.85356942]
[1747594929254,3.2078,2464.7,2464.6,17.52191942]
[1747594929756,3.2078,2464.7,2464.6,16.71076942]
[1747594929957,1.7637,2464.8,2464.6,16.71076942]
[1747594930164,2.57479,2464.8,2464.6,16.71076942]
[1747594930365,1.7637,2464.8,2464.6,17.52189942]
[1747594930661,1.7637,2464.8,2464.6,16.71076942]
[1747594930854,0.81117,2464.6,2464.1,0.81129]
[1747594931057,9.932,2464.6,2464.5,16.71076942]
[1747594931258,11.6806,2464.6,2464.5,0.09218003]
[1747594931760,12.49175,2464.6,2464.5,0.09218003]
[1747594932458,11.6806,2464.6,2464.2,1.7128]
[1747594932658,0.81118,2464.5,2464.2,18.42356942]
[1747594932858,1.6407,2464.4,2464.2,18.42356942]
[1747594933164,3.2078,2464.3,2463.9,9.939]
[1747594933361,1.6407,2464.2,2464.0,16.71076942]
[1747594933559,2.45198,2464.2,2464.0,18.45216942]
[1747594933762,1.6407,2464.2,2464.0,1.7414]
[1747594933958,6.2658,2464.5,2464.1,16.71076942]
[1747594934162,3.2078,2464.5,2464.4,17.52197942]
[1747594934456,2.63667,2464.9,2464.4,26.64976942]
[1747594934457,5.0334,2464.9,2464.4,26.64976942]
[1747594934761,1.8256,2464.9,2464.8,17.52184942]
[1747594935259,0.81112,2464.7,2464.5,1.7414]
[1747594935464,0.81112,2464.7,2464.6,16.71076942]
[1747594935856,0.81115,2464.6,2464.5,1.7414]
[1747594936165,1.8256,2464.9,2464.6,16.71076942]
[1747594936361,1.8256,2464.9,2464.7,2.5694]
[1747594936567,1.8256,2464.9,2464.8,1.7583]
[1747594936766,2.63665,2464.9,2464.8,1.7583]
[1747594936966,4.33425,2464.9,2464.8,1.7583]
[1747594937466,0.81115,2464.6,2464.4,9.939]
[1747594937658,0.81115,2464.6,2464.5,1.7583]
[1747594937854,9.927,2464.8,2464.5,19.28023942]
[1747594938055,9.927,2464.8,2464.5,2.56947]
[1747594938459,9.927,2464.8,2464.6,16.71076942]
[1747594938660,3.5232,2464.9,2464.7,1.6811]
[1747594938858,1.8256,2464.9,2464.8,0.81108]
[1747594939061,1.8256,2464.9,2464.8,17.52184942]
[1747594939267,1.8256,2464.9,2464.8,21.09914942]
[1747594939466,1.8256,2464.9,2464.8,22.78024942]
[1747594941673,1.8256,2464.9,2464.8,18.39186942]
[1747594941869,2.63665,2464.9,2464.8,28.33186942]
[1747594942171,5.69465,2464.9,2464.8,28.33186942]
[1747594942367,19.8076,2464.9,2464.1,3.2078]
[1747594942666,19.8076,2464.9,2464.0,2.02833]
[1747594942667,0.81108,2464.8,2464.7,0.81112]
[1747594942972,4.8836,2464.9,2464.8,17.52184942]
[1747594943169,1.8256,2464.9,2464.8,17.52184942]
[1747594946172,4.8836,2464.9,2464.8,17.52184942]
[1747594946668,4.97578003,2464.9,2464.8,17.52184942]
[1747594947877,4.97578003,2464.9,2464.8,22.43954942]
[1747594948074,1.91778003,2464.9,2464.8,22.43954942]
[1747594951070,4.97578003,2464.9,2464.8,22.43954942]
[1747594952766,5.78683003,2464.9,2464.8,16.71076942]
[1747594952966,0.81108,2464.8,2464.7,1.7964]
[1747594953264,2.56518,2464.8,2464.7,1.7964]
[1747594953469,2.56518,2464.8,2464.7,2.60752]
[1747594953767,2.56518,2464.8,2464.7,1.7964]
[1747594954172,8.0199,2464.8,2464.3,1.7784]
[1747594954379,0.81116,2464.6,2464.5,1.757]
[1747594954671,0.81114,2464.7,2464.6,0.81115]
[1747594954882,8.0199,2464.8,2464.7,0.81112]
[1747594955179,8.83098,2464.8,2464.7,2.56812]
[1747594955373,5.62318,2464.8,2464.7,1.757]
[1747594955674,0.81117,2464.6,2464.4,0.81119]
[1747594955977,0.81117,2464.6,2464.3,11.7184]
[1747594955978,0.81113,2464.7,2464.6,17.52189942]
[1747594956381,0.81112,2464.7,2464.6,0.81115]
[1747594956771,0.81112,2464.7,2464.6,17.52189942]
[1747594956970,0.81113,2464.7,2464.6,0.81114]
[1747594957272,3.058,2464.7,2464.6,0.81114]
[1747594957472,0.81115,2464.6,2464.5,2.56817]
[1747594957672,5.55643,2464.7,2464.6,17.52191942]
[1747594958063,5.55643,2464.7,2464.6,0.81115]
[1747594958978,0.81115,2464.6,2464.5,1.757]
[1747594959173,1.6873,2464.6,2464.2,13.93208]
[1747594959475,1.6873,2464.6,2464.4,16.71076942]
[1747594959676,2.49845,2464.6,2464.5,1.671]
[1747594960071,5.55645,2464.6,2464.5,1.671]
[1747594962678,3.058,2464.6,2464.5,19.19294942]
[1747594962872,4.65152533,2464.6,2464.5,19.19294942]
[1747594963073,5.46267533,2464.6,2464.5,28.29576942]
[1747594963572,7.12217533,2464.6,2464.5,28.29576942]
[1747594963772,7.12217533,2464.6,2464.5,28.60213466]
[1747594964174,7.12217533,2464.6,2464.5,28.29576942]
[1747594965180,1.65468471,2465.0,2464.9,14.12206409]
[1747594965379,1.65468471,2465.0,2464.9,14.42877496]
[1747594965585,1.65468471,2465.0,2464.9,14.42862981]
[1747594966075,2.24164959,2465.3,2465.2,13.31101409]
[1747594966387,1.00636598,2466.0,2465.9,0.81072]
[1747594966574,1.00636598,2466.0,2465.9,24.34229981]
[1747594967182,1.00636598,2466.0,2465.9,26.01759981]
[1747594967377,1.00636598,2466.0,2465.9,26.01607022]
[1747594969184,1.00636598,2466.0,2465.9,26.01528191]
[1747594969985,1.09854601,2466.0,2465.9,25.70903409]
[1747594970181,1.09854601,2466.0,2465.9,9.912]
[1747594970182,0.90287003,2466.0,2465.9,9.912]
[1747594970781,1.86868003,2466.0,2465.9,9.912]
[1747594970982,1.86868003,2466.0,2465.9,10.72272]
[1747594971184,4.92668003,2466.0,2465.9,10.72272]
[1747594971385,4.92668003,2466.0,2465.9,24.03373409]
[1747594971683,5.73737003,2466.0,2465.9,9.912]
[1747594972075,4.92668003,2466.0,2465.8,9.911]
[1747594972597,0.81072,2465.9,2465.8,9.911]
[1747594972883,1.7956,2465.9,2465.8,10.72175]
[1747594973087,5.66432,2465.9,2465.8,9.911]
[1747594973472,3.058,2465.9,2465.8,24.03276409]
[1747594973677,3.058,2465.9,2465.8,10.72175]
[1747594974081,3.86872,2465.9,2465.8,10.72175]
[1747594974881,3.058,2465.9,2465.8,10.72175]
[1747594975387,5.52132,2465.9,2465.8,10.72175]
[1747594975581,5.52132,2465.9,2465.8,9.91]
[1747594975779,5.52132,2465.9,2465.8,10.72075]
[1747594975984,5.52132,2465.9,2465.8,9.91]
[1747594976178,5.52132,2465.9,2465.8,10.72075]
[1747594976685,5.52132,2465.9,2465.8,9.91]
[1747594977686,4.7106,2465.9,2465.8,10.72075]
[1747594978088,3.058,2465.9,2465.8,10.72075]
[1747594978589,3.058,2465.9,2465.8,24.03176409]
[1747594978783,3.058,2465.9,2465.8,27.23956409]
[1747594978986,3.058,2465.9,2465.8,42.12456409]
[1747594979187,4.01838,2466.4,2466.2,0.8106]
[1747594979489,4.01838,2466.4,2466.3,24.87971409]
[1747594979679,5.80108,2466.4,2466.3,24.87971409]
[1747594980386,8.85908,2466.4,2466.3,11.5687]
[1747594980595,8.85908,2466.4,2466.3,9.91]
[1747594981789,6.2658,2466.4,2466.3,24.03160409]
[1747594982188,7.07636,2466.4,2466.3,23.22101409]
[1747594982689,7.07636,2466.4,2466.3,9.91]
[1747594982888,8.82076,2466.4,2466.3,9.91]
[1747594984189,0.81083,2465.6,2465.3,0.30313778]
[1747594984396,3.2078,2465.9,2465.4,25.74530409]
[1747594984691,3.6143,2465.8,2465.4,24.93441409]
[1747594984994,3.2078,2465.6,2465.2,1.6452]
[1747594985289,0.81095,2465.2,2465.1,9.877]
[1747594985788,4.31585,2465.2,2465.1,9.877]
[1747594986294,7.37385,2465.2,2465.1,9.877]
[1747594987193,0.81102,2465.0,2464.9,50.771]
[1747594987390,4.01882,2465.0,2464.9,64.08201409]
[1747594987893,5.67302,2465.0,2464.9,64.08201409]
[1747594988186,8.73102,2465.0,2464.9,9.878]
[1747594988781,0.81115,2464.6,2464.5,1.6683]
[1747594988986,0.81115,2464.6,2464.5,11.5463]
[1747594989187,3.058,2464.6,2464.5,11.5463]
[1747594989682,3.86915,2464.6,2464.5,11.5463]
[1747594990994,5.65655,2464.6,2464.5,11.5463]
[1747594991491,5.65655,2464.6,2464.5,11.5473]
[1747594991892,4.8454,2464.6,2464.5,11.5473]
[1747594992100,3.058,2464.6,2464.5,11.5473]
[1747594992397,3.058,2464.6,2464.5,25.66949409]
[1747594992779,3.86915,2464.6,2464.5,11.5473]
[1747594993389,5.70635,2464.6,2464.5,11.5473]
[1747594994797,2.02796,2464.5,2463.9,9.88]
[1747594995102,0.81137,2464.0,2463.9,9.88]
[1747594995392,0.81134,2464.1,2464.0,13.31101409]
[1747594995694,0.81133,2464.1,2464.0,13.31101409]
[1747594995893,3.2078,2464.2,2464.0,13.31101409]
[1747594996190,3.058,2464.2,2464.1,14.12232409]
[1747594997195,0.81123,2464.4,2464.2,0.81126]
[1747594997393,0.81123,2464.4,2464.3,15.06511409]
[1747594998094,3.86923,2464.4,2464.3,15.06511409]
[1747594998887,3.86923,2464.4,2464.3,1.7541]
[1747594999088,5.56193,2464.4,2464.3,1.7541]
[1747595000287,0.81133,2464.1,2463.7,1.713]
[1747595000486,0.81133,2464.1,2464.0,1.8349]
[1747595000692,0.8113,2464.2,2464.0,15.95726409]
[1747595000886,0.8113,2464.2,2464.1,13.31101409]
[1747595001292,0.81131,2464.1,2464.0,1.8349]
[1747595001497,0.81138,2463.9,2463.8,9.882]
[1747595001888,0.81138,2463.9,2463.8,23.19301409]
[1747595002288,0.81141,2463.8,2463.7,1.713]
[1747595002492,0.81145,2463.7,2463.6,9.882]
[1747595003004,0.81145,2463.7,2463.6,23.19301409]
[1747595003288,0.81148,2463.6,2463.5,1.686]
[1747595003692,0.81148,2463.6,2463.5,14.99701409]
[1747595003894,3.058,2463.7,2463.6,0.81148]
[1747595004091,6.46780382,2465.1,2464.1,0.81131]
[1747595004092,3.2078,2464.2,2464.1,0.81131]
[1747595004297,3.2078,2464.5,2464.4,13.31101409]
[1747595004492,3.2078,2464.5,2464.4,0.81121]
[1747595004697,3.2078,2464.5,2464.4,14.12222409]
[1747595005096,13.396,2465.0,2464.6,0.81112]
[1747595005097,0.81106,2464.9,2464.6,0.81112]
[1747595005394,5.73294,2465.0,2464.9,13.31101409]
[1747595005790,5.73294,2465.0,2464.8,0.81108]
[1747595005986,3.2078,2465.0,2464.9,14.12206409]
[1747595006692,0.81094,2465.3,2464.9,13.31101409]
[1747595006891,0.81094,2465.3,2465.1,13.31101409]
[1747595007093,3.86894,2465.3,2465.2,1.7585]
[1747595007297,4.8397,2465.3,2464.9,0.81104]
[1747595007501,0.81095,2465.2,2465.1,13.31101409]
[1747595007688,3.058,2465.3,2465.2,14.12196409]
[1747595008097,1.00636598,2465.4,2465.3,0.81092]
[1747595008395,1.00636598,2465.4,2465.3,15.91103409]
[1747595008596,1.00636598,2465.4,2465.3,25.85993409]
[1747595008989,1.00636598,2465.4,2465.3,35.71393409]
[1747595011094,1.00636598,2465.4,2465.3,39.99768903]
[1747595011297,1.31682603,2465.6,2465.5,0.81085]
[1747595011501,1.31682603,2465.6,2465.5,14.12186409]
[1747595011704,1.31682603,2465.6,2465.5,19.12186409]
[1747595012399,0.8107,2466.0,2465.8,0.81073]
[1747595012701,0.8107,2466.0,2465.9,11.6704]
[1747595012902,0.8107,2466.0,2465.9,24.98141409]
[1747595013204,3.8687,2466.0,2465.9,24.98141409]
[1747595013403,3.058,2466.0,2465.9,25.79213409]
[1747595013896,1.32568,2466.0,2465.9,30.79213409]
[1747595014101,0.48286,2466.0,2465.9,31.09615406]
[1747595014295,2.41278382,2466.6,2466.2,0.8106]
[1747595014496,0.81057,2466.4,2466.3,1.7894]
[1747595014697,4.01837,2466.4,2466.3,9.88]
[1747595014897,9.01837,2466.4,2466.3,9.88]
[1747595015104,12.07637,2466.4,2466.3,9.88]
[1747595015605,2.02654,2466.3,2465.5,42.5808]
[1747595015793,0.81075,2465.8,2465.7,13.31101409]
[1747595015998,0.81085,2465.5,2465.4,1.19655642]
[1747595016393,5.81085,2465.5,2465.4,1.19655642]